Workbook

Sheet 심의안건
A1: 제2회 예천군 보조금심의위원회 대상자선정심의 조서
K2: (단위 : 천원)
A3: 부서명 | B3: 보 조 사 업 자 | C3: 보 조 사 업 명 | D3: 과목명 | E3: 과목명 | F3: 사 업 내 용 | G3: 계 | H3: 보조금 | I3: 자부담 | J3: 1차(해당부서) | K3: 2차(예산부서) | L3: 3차(위원회)
A4: 계 | C4: =SUBTOTAL(103,C5:C73)&"건" -> 61건 | G4: =G5+G7+G9+G12+G16+G58+G71+G73 -> 10,177,534 | H4: =H5+H7+H9+H12+H16+H58+H71+H73 -> 5,062,887 | I4: 5,114,647 | J4: 5,062,887 | K4: =K5+K7+K9+K12+K16+K58+K71+K73 -> 5,062,887 | L4: =L5+L7+L9+L12+L16+L58+L71+L73 -> 5,062,887
A5: 주민복지실 소계 | C5: =SUBTOTAL(103,C6)&"건" -> 1건 | G5: =SUBTOTAL(9,G6) -> 18,044 | H5: =SUBTOTAL(9,H6:H6) -> 18,000 | I5: =SUBTOTAL(9,I6) -> 44 | J5: 18,000 | K5: 18,000 | L5: 18,000
A6: 주민복지실 | B6: 예천읍 체육회 외 11개 단체 | C6: 읍면 어버이날 지원 | D6: 사회복지사업보조 | E6: 사회복지사업보조 | F6: 5,000원 * 300명 * 12읍면 | G6: =SUM(H6:I6) -> 18,044 | H6: 18,000 | I6: 44 | J6: 18,000 | K6: 18,000 | L6: 18,000
A7: 총무과 소계 | C7: =SUBTOTAL(103,C8:C8)&"건" -> 1건 | G7: =SUBTOTAL(9,G8) -> 60,000 | H7: =SUBTOTAL(9,H8:H8) -> 60,000 | I7: =SUBTOTAL(9,I8) -> 0 | J7: 60,000 | K7: 60,000 | L7: 60,000
A8: 총무과 | B8: 영진전문대학교 글로벌캠퍼스 (대구경북영어마을) | C8: 중학생 영어체험학습 지원사업 | D8: 민간경상사업보조 | E8: 민간경상사업보조 | F8: 2박 3일 입소형 영어체험학습비 지원 300천원 * 200명 | G8: =SUM(H8:I8) -> 60,000 | H8: 60,000 | I8: 0 | J8: 60,000 | K8: 60,000 | L8: 60,000
A9: 주민복지과 소계 | C9: =SUBTOTAL(103,C10:C11)&"건" -> 2건 | G9: =SUBTOTAL(9,G10:G11) -> 74,550 | H9: =SUBTOTAL(9,H10:H11) -> 63,000 | I9: 11,550 | J9: 63,000 | K9: =SUBTOTAL(9,K10:K11) -> 63,000 | L9: =SUBTOTAL(9,L10:L11) -> 63,000
A10: 문화관광과 | B10: 예천불교총연합회 및 예천기독교연합회 | C10: 종무활동 지원 사업 | D10: 민간경상사업보조 | E10: 민간경상사업보조 | F10: 예천개심사지 연등회 개최 성탄트리설치비 2식*10,000천원 | G10: =SUM(H10:I10) -> 65,000 | H10: 55,000 | I10: 10,000 | J10: 55,000 | K10: 55,000 | L10: 55,000
A11: 문화관광과 | B11: 예천만권당 작은도서관 외 6 (대상자 내역 별지 참조) | C11: 작은도서관 도서구입 지원 사업 | D11: 민간경상사업보조 | E11: 민간경상사업보조 | F11: 도서구입 : 8,000 | G11: =SUM(H11:I11) -> 9,550 | H11: 8,000 | I11: 1,550 | J11: 8,000 | K11: 8,000 | L11: 8,000
A12: 환경관리과 소계 | C12: =SUBTOTAL(103,C13:C15)&"건" -> 3건 | F12: =SUM(F13:F14) -> 0 | G12: =SUBTOTAL(9,G13:G15) -> 884,375 | H12: =SUBTOTAL(9,H13:H15) -> 354,000 | I12: 530,375 | J12: 354,000 | K12: 354,000 | L12: 354,000
A13: 환경관리과 | B13: 예천읍 대심1길 1 예천군 지속가능발전 협의회 | C13: 저탄소 생활실천 운영사업 | D13: 민간경상사업보조 | E13: 민간경상사업보조 | F13: 6,000천원 * 1식 | G13: =SUM(H13:I13) -> 6,000 | H13: 6,000 | J13: 6,000 | K13: 6,000 | L13: 6,000
A14: 환경관리과 | B14: 예천군 보문면 ㈜ 동서전기 외 17명 (대상자 내역 별지) ※ 사업포기시 후보자순에 의함 | C14: 예천군 전기자동차 민간보급사업 | D14: 민간자본사업보조 | E14: 민간자본사업보조 | F14: 50,000천원 * 1식 * 30% | G14: =SUM(H14:I14) -> 500,000 | H14: 150,000 | I14: 350,000 | J14: 150,000 | K14: 150,000 | L14: 150,000
A15: 환경관리과 | B15: 예천읍 갈구2길 황주섭 외 93명 (대상자 내역 별지) | C15: 야생동물 피해예방시설 설치 지원사업 | D15: 민간자본사업보조 | F15: 330,000천원 * 1식 * 60% | G15: =SUM(H15:I15) -> 378,375 | H15: 198,000 | I15: 180,375 | J15: 198,000 | K15: 198,000 | L15: 198,000
A16: 농정과 소계 | C16: =SUBTOTAL(103,C17:C57)&"건" -> 41건 | D16: =SUBTOTAL(103,D17:D57) -> 41 | G16: =SUBTOTAL(9,G17:G57) -> 8,611,205 | H16: =SUM(H17:H57) -> 4,140,187 | I16: 4,471,018 | J16: 4,140,187 | K16: =SUM(K17:K57) -> 4,140,187 | L16: =SUM(L17:L57) -> 4,140,187
A17: 농정과 | B17: 예천읍 청복골마길 53 구원모 외 383명 (대상자 내역 별지) | C17: 소득작목육성지원사업 | D17: 민간자본사업보조 | F17: 2,032,873천원 * 1식 * 50% | G17: =SUM(H17:I17) -> 2,032,873 | H17: 1,016,432 | I17: 1,016,441 | J17: 1,016,432 | K17: 1,016,432 | L17: 1,016,432
A18: 농정과 | B18: 보문면 가거길길 41 강춘원 외 1명 (대상자 내역 별지) | C18: 민속채소양채류지원사업 | D18: 민간자본사업보조 | F18: 8,000천원 * 1식 * 50% | G18: =SUM(H18:I18) -> 8,000 | H18: 4,000 | I18: 4,000 | J18: 4,000 | K18: =I18 -> 4,000 | L18: 4,000
A19: 농정과 | B19: 예천읍 용문경천로 1485 김정한 외 19명 (대상자 내역 별지) | C19: 인삼생약산업육성지원사업 | D19: 민간자본사업보조 | F19: 120,000천원 * 1식 * 50% | G19: 120,000 | H19: 60,000 | I19: 60,000 | J19: 60,000 | K19: 60,000 | L19: 60,000
A20: 농정과 | B20: 호명면 종산길 102-11 박성태 외 16명 (대상자 내역 별지) | C20: 특용작물(인삼)생산시설현대화사업 | D20: 민간자본사업보조 | F20: 85,740천원 * 1식 * 50% | G20: 85,740 | H20: 42,870 | I20: 42,870 | J20: 42,870 | K20: 42,870 | L20: 42,870
A21: 농정과 | B21: 예천읍 갈구2길 263-20 우갑기 외 4명 (대상자 내역 별지) | C21: 고추비가림재배시설지원사업 | D21: 민간자본사업보조 | F21: 150,920천원 * 1식 * 50% | G21: 150,920 | H21: 75,460 | I21: 75,460 | J21: 75,460 | K21: 75,460 | L21: 75,460
A22: 농정과 | B22: 감천면 덕율4길 100 김갑철 외 4명 (대상자 내역 별지) | C22: 시설원예현대화사업 | D22: 민간자본사업보조 | F22: 36,000천원 * 1식 * 50% | G22: 36,000 | H22: 18,000 | I22: 18,000 | J22: 18,000 | K22: 18,000 | L22: 18,000
A23: 농정과 | B23: 예천읍 갈구2길 210 이덕영 외 12명 (대상자 내역 별지) | C23: 농업에너지이용효율화사업 | D23: 민간자본사업보조 | F23: 217,425천원 * 1식 * 50% | G23: 217,425 | H23: 108,712 | I23: 108,713 | J23: 108,712 | K23: 108,712 | L23: 108,712
A24: 농정과 | B24: 예천읍 용정길 11-18 박병근 외 570명 (대상자 내역 별지) | C24: 원예산업육성지원사업 | D24: 민간자본사업보조 | F24: 1,237,390천원 * 1식 * 50% | G24: 1,237,385 | H24: 595,232 | I24: 642,153 | J24: 595,232 | K24: 595,232 | L24: 595,232
A25: 농정과 | B25: 예천군친환경연합회(회장:이현부) | C25: 친환경인증벼 톤백 포장재 지원 | D25: 민간자본사업보조 | F25: 10,000원 * 2,000매 | G25: 20,000 | H25: 10,000 | I25: 10,000 | J25: 10,000 | K25: 10,000 | L25: 10,000
A26: 농정과 | B26: 예천읍 용산길 62 이상철 외 189명 (대상자 내역 별지) | C26: 중소형농업기계 지원 | D26: 민간자본사업보조 | F26: 2,000,000원 * 190대 * 50% | G26: 380,000 | H26: 190,000 | I26: 190,000 | J26: 190,000 | K26: 190,000 | L26: 190,000
A27: 농정과 | B27: 예천읍 맛고을길 77 남창환 외 5명 (대상자 내역 별지) | C27: 인력절감형 승용관리기 지원 | D27: 민간자본사업보조 | F27: 20,000,000원 * 6대 * 50% | G27: 120,000 | H27: 60,000 | I27: 60,000 | J27: 60,000 | K27: 60,000 | L27: 60,000
A28: 농정과 | B28: 예천읍 지내길 54-3 김원기 외 55명 (대상자 내역 별지) | C28: FTA대응 곡물건조기 지원 | D28: 민간자본사업보조 | F28: 220,000천원 * 1식 * 50% | G28: 220,000 | H28: 110,000 | I28: 110,000 | J28: 110,000 | K28: 110,000 | L28: 110,000
A29: 농정과 | B29: 예천군친환경연합회(회장:이현부) | C29: 친환경인증 벼 육묘상처리약제 지원사업 | D29: 민간자본사업보조 | F29: 25,000원*150ha*50% | G29: 3,750 | H29: 1,875 | I29: 1,875 | J29: 1,875 | K29: 1,875 | L29: 1,875
A30: 농정과 | B30: 예천읍 용산작목반 외 38개소 (대상자 내역 별지) | C30: 친환경농법 단지조성 지원사업 | D30: 민간자본사업보조 | F30: 종합지원 1,000,000원 * 25ha * 70% 인증단지 1,000,000원 * 124ha * 50% 실천단지 300,000원 * 1,110ha * 50% | G30: 482,124 | H30: 246,027 | I30: 236,097 | J30: 246,027 | K30: 246,027 | L30: 246,027
A31: 농정과 | B31: 용문면 우망골길 108 손진욱 외 27명 (대상자 내역 별지) | C31: 유기농업자재 지원사업(유기농업자재) | D31: 민간자본사업보조 | F31: 1,064,090원 * 70ha * 50% | G31: 74,487 | H31: 37,244 | I31: 37,243 | J31: 37,244 | K31: 37,244 | L31: 37,244
A32: 농정과 | B32: 농협중앙회 예천군지부장 | C32: 유기농업자재 지원사업(녹비) | D32: 민간자본사업보조 | F32: 267,080원 * 13ha * 50% | G32: 3,472 | H32: 1,736 | I32: 1,736 | J32: 1,736 | K32: 1,736 | L32: 1,736
A33: 농정과 | B33: 예천읍 용산길 45-1 이연우외 4명 (대상자 내역 별지) | C33: 벼 육묘공장(소형)설치 지원 | D33: 민간자본사업보조 | F33: 210,000천원 * 1식 * 50% | G33: 210,000 | H33: 105,000 | I33: 105,000 | J33: 105,000 | K33: 105,000 | L33: 105,000
A34: 농정과 | B34: 용문면 성현길 216 박찬모 | C34: 벼 육묘 녹화장(대형) 설치 지원 | D34: 민간자본사업보조 | F34: 20,000천원 * 1식 * 50% | G34: 20,000 | H34: 10,000 | I34: 10,000 | J34: 10,000 | K34: 10,000 | L34: 10,000
A35: 농정과 | B35: 보문면 문래실길 88-9 박영철외 3명 (대상자 내역 별지) | C35: 벼 육묘 녹화장(소형) 설치 지원 | D35: 민간자본사업보조 | F35: 44,000천원*1식*50% | G35: 44,000 | H35: 22,000 | I35: 22,000 | J35: 22,000 | K35: 22,000 | L35: 22,000
A36: 농정과 | B36: 용문면 상금시장길 26 정해칠외 3명 (대상자 내역 별지) | C36: 벼 육묘장 개보수(대형) 지원사업 | D36: 민간자본사업보조 | F36: 58,000천원*1식*50% | G36: 68,459 | H36: 29,000 | I36: 39,459 | J36: 29,000 | K36: 29,000 | L36: 29,000
A37: 농정과 | B37: 용궁면 덕계리 조창웅외 8명 (대상자 내역 별지) | C37: 벼 육묘장 개보수(소형) 지원사업 | D37: 민간자본사업보조 | F37: 43,000천원*1식*50% | G37: 45,600 | H37: 21,500 | I37: 24,100 | J37: 21,500 | K37: 21,500 | L37: 21,500
A38: 농정과 | B38: 예천읍 상동길 18-4 권혁삼외 30명 (대상자 내역 별지) | C38: 농약안전보관함 설치 지원사업 | D38: 민간자본사업보조 | F38: 9,920천원 * 1식 * 50% | G38: 9,920 | H38: 4,960 | I38: 4,960 | J38: 4,960 | K38: 4,960 | L38: 4,960
A39: 농정과 | B39: 예천읍 대심1길 86 최재혁외 178명 (대상자 내역 별지) | C39: 밭작물 폭염(가뭄)피해 예방사업 지원 | D39: 민간자본사업보조 | F39: 115,800천원 * 1식 * 70% | G39: 115,800 | H39: 81,060 | I39: 34,740 | J39: 81,060 | K39: 81,060 | L39: 81,060
A40: 농정과 | B40: 쌀전업농예천군연합회외 1 (대상자 내역 별지) | C40: 명품쌀 재배단지 조성사업 | D40: 민간자본사업보조 | F40: 70,800천원 * 1식 * 100% | G40: 70,800 | H40: 70,800 | I40: 0 | J40: 70,800 | K40: 70,800 | L40: 70,800
A41: 농정과 | B41: 효자면 새별길 27-3 전석한 외 3명 (대상자 내역 별지) | C41: 과수생력화기자재지원 (과수전동가위) | D41: 민간자본사업보조 | F41: 1,600천원 * 4대 * 50% | G41: 6,400 | H41: 3,200 | I41: 3,200 | J41: 3,200 | K41: 3,200 | L41: 3,200
A42: 농정과 | B42: 감천면 오향길 86-8 김상복 외 11명 (대상자 내역 별지) | C42: 자두재배농가 경쟁력 제고 지원 (농업용 동력운반차, 자두선별기) | D42: 민간자본사업보조 | F42: 52,000천원 * 50% | G42: 52,000 | H42: 26,000 | I42: 26,000 | J42: 26,000 | K42: 26,000 | L42: 26,000
A43: 농정과 | B43: 보문면 노트기길 133-1 최인자 외 17명 (대상자 내역 별지) | C43: FTA 대응 특화작목 경쟁력 제고 (농업용 동력운반차,자두선별기, 지주시설) | D43: 민간자본사업보조 | F43: 30,002천원 * 50% | G43: 30,002 | H43: 15,000 | I43: 15,002 | J43: 15,000 | K43: 15,000 | L43: 15,000
A44: 농정과 | B44: 예천읍 대심1길 12 강경훈 외 10명 (대상자 내역 별지) | C44: 다목적농가형 저온저장고 지원사업 | D44: 민간자본사업보조 | F44: 11동* 20,000천원 * 50% | G44: 220,000 | H44: 110,000 | I44: 110,000 | J44: 110,000 | K44: 110,000 | L44: 110,000
A45: 농정과 | B45: 예천읍 노상리길 39-4 이기식 외 21명 (대상자 내역 별지) | C45: 과수생력화장비 지원사업(다목적리프트기) | D45: 민간자본사업보조 | F45: 22대 * 9,000천원 * 50% | G45: 198,000 | H45: 99,000 | I45: 99,000 | J45: 99,000 | K45: 99,000 | L45: 99,000
A46: 농정과 | B46: 효자면 은풍로 36 이두현 외 7명 (대상자 내역 별지) | C46: 과수생력화장비 지원사업(승용예초기) | D46: 민간자본사업보조 | F46: 8대 * 9,000천원 * 50% | G46: 72,000 | H46: 36,000 | I46: 36,000 | J46: 36,000 | K46: 36,000 | L46: 36,000
A47: 농정과 | B47: 예천읍 못골길 117 이재두 외 28명 (대상자 내역 별지) | C47: 과수생력화장비 지원사업(과수전용방제기, SS기) | D47: 민간자본사업보조 | F47: 29대 * 20,000천원 * 25% | G47: 580,000 | H47: 145,000 | I47: 435,000 | J47: 145,000 | K47: 145,000 | L47: 145,000
A48: 농정과 | B48: 예천읍 용문경천로 1751 박영찬 외 135명 (대상자 내역 별지) | C48: 과실 생산비 절감 및 품질제고 지원사업 (사과적화제) | D48: 민간자본사업보조 | F48: 39,799천원 * 50% 사업비 초과분 자부담 | G48: 39,799 | H48: 19,873 | I48: 19,926 | J48: 19,873 | K48: 19,873 | L48: 19,873
A49: 농정과 | B49: 예천읍 원고개길 125-8 박성홍 외 233명 (대상자 내역 별지) | C49: 과실 생산비 절감 및 품질제고 지원사업 (장기저장제) | D49: 민간자본사업보조 | F49: 186,747천원 * 50% 사업비 초과분 자부담 | G49: 186,747 | H49: 93,304 | I49: 93,443 | J49: 93,304 | K49: 93,304 | L49: 93,304
A50: 농정과 | B50: 효자면 백석길 72 정성화 외 3명 (대상자 내역 별지) | C50: 과실 생산비 절감 및 품질제고 지원사업 (농업용수처리기) | D50: 민간자본사업보조 | F50: 4대 * 7,000천원 * 50% | G50: 28,000 | H50: 14,000 | I50: 14,000 | J50: 14,000 | K50: 14,000 | L50: 14,000
A51: 농정과 | B51: 예천읍 용문경천로 1850 김정일 외 9명 (대상자 내역 별지) | C51: FTA대응 대체과수 명품화 지원사업 | D51: 민간자본사업보조 | F51: 124,000천원 * 50% | G51: 124,400 | H51: 62,198 | I51: 62,202 | J51: 62,198 | K51: 62,198 | L51: 62,198
A52: 농정과 | B52: 예천읍 시장로 118 신점식 외 9명 (대상자 내역 별지) | C52: 화훼생산시설 경쟁력제고 지원사업 | D52: 민간자본사업보조 | F52: 139,995천원 * 50% | G52: 139,995 | H52: 69,997 | I52: 69,998 | J52: 69,997 | K52: 69,997 | L52: 69,997
A53: 농정과 | B53: 예천농협외 3개소 (대상자 내역 별지) | C53: 생력 및 고품질 과수자재지원사업 (과일봉지, 반사필름) | D53: 민간자본사업보조 | F53: 545,000천원 * 30% (예산범위내) | G53: 545,000 | H53: 163,500 | I53: 381,500 | J53: 163,500 | K53: 163,500 | L53: 163,500
A54: 농정과 | B54: 용문면 우망골길 99 임용규 외 25명 (대상자 내역 별지) | C54: 아로니아 과원정비 지원사업 | D54: 민간경상사업보조 | F54: 38,307천원 * 1식 | G54: 38,307 | H54: 38,307 | J54: 38,307 | K54: 38,307 | L54: 38,307
A55: 농정과 | B55: 예천군양잠농업협동조합 | C55: 양잠산업육성 지원사업 | D55: 민간자본사업보조 | F55: 473,000천원 * 1식 * 50% | G55: 473,000 | H55: 236,500 | I55: 236,500 | J55: =H55 -> 236,500 | K55: =I55 -> 236,500 | L55: =J55 -> 236,500
A56: 농정과 | B56: 예천군양잠농업협동조합 | C56: 양잠특용작물 생산지원사업 | D56: 민간자본사업보조 | F56: 40천원 * 1,200상자 * 70% | G56: 48,000 | H56: 33,600 | I56: 14,400 | J56: =H56 -> 33,600 | K56: 33,600 | L56: 33,600
A57: 농정과 | B57: 예천군양잠농업협동조합 | C57: 애누에공동사육비 지원사업 | D57: 민간자본사업보조 | F57: 33천원 * 1,600상자 | G57: 52,800 | H57: 52,800 | J57: 52,800 | K57: 52,800 | L57: 52,800
A58: 산림축산과 소계 | C58: =SUBTOTAL(103,C60:C73)&"건" -> 12건 | G58: =SUBTOTAL(9,G59:G70) -> 398,360 | H58: =SUBTOTAL(9,H59:H70) -> 296,700 | I58: 101,660 | J58: 296,700 | K58: =SUBTOTAL(9,K59:K70) -> 296,700 | L58: =SUBTOTAL(9,L59:L70) -> 296,700
A59: 산림축산과 | B59: 효자면 제촌길 55-3 강성준 외 38명 (대상자 내역 별지) | C59: 백두대간주민지원사업 | D59: 민간자본사업보조 | E59: 민간자본사업보조 | F59: 181,800천원 * 1식 * 90% | G59: =SUM(H59:I59) -> 181,800 | H59: 163,620 | I59: 18,180 | J59: 163,620 | K59: 163,620 | L59: 163,620
A60: 산림축산과 | B60: 예천읍 석정길 195 안점숙 외 224명 (대상자내역별지) | C60: 한우기생충 구제사업 | D60: 민간자본사업보조 | E60: 민간자본사업보조 | F60: 7천원 * 5,000두 * 50% | G60: =SUM(H60:I60) -> 35,000 | H60: 17,500 | I60: 17,500 | J60: 17,500 | K60: 17,500 | L60: 17,500
A61: 산림축산과 | B61: 예천읍 원고개길 67 김진국 외 21명 (대상자 내역 별지) | C61: 돼지 써코바이러스 백신지원사업(상반기) | D61: 민간자본사업보조 | E61: 민간자본사업보조 | F61: 2천원 * 35,000두 * 60% | G61: 70,000 | H61: 42,000 | I61: 28,000 | J61: 42,000 | K61: 42,000 | L61: 42,000
A62: 산림축산과 | B62: 예천읍 충효로 847-12 윤재연 외 9명 (대상자 내역 별지) | C62: 축산농가 소독시설 지원사업 | D62: 민간자본사업보조 | E62: 민간자본사업보조 | F62: 5,000천원 * 10조 * 70% | G62: 50,000 | H62: 35,000 | I62: 15,000 | J62: 35,000 | K62: 35,000 | L62: 35,000
A63: 산림축산과 | B63: 예천읍 갈구2길 160-9 김일교 외 5명 (대상자 내역 별지) | C63: 축산농장 소독방역기 지원사업 | D63: 민간자본사업보조 | E63: 민간자본사업보조 | F63: 1,400천원 * 6대 * 70% | G63: 8,400 | H63: 5,880 | I63: 2,520 | J63: 5,880 | K63: 5,880 | L63: 5,880
A64: 산림축산과 | B64: 예천읍 대심1길 19, 102동 403호 김찬동 외 6명(대상자 내역 별지) | C64: 축산농가 연막소독기 지원사업 | D64: 민간자본사업보조 | E64: 민간자본사업보조 | F64: 600천원 * 7대 * 70% | G64: 4,200 | H64: 2,940 | I64: 1,260 | J64: 2,940 | K64: 2,940 | L64: 2,940
A65: 산림축산과 | B65: 예천읍 충효로 김경동 외 5명 (대상자 내역 별지) | C65: 유우군 검정사업 | D65: 민간자본사업보조 | E65: 민간경상사업보조 | F65: 2천원 * 200두 * 70% | G65: 400 | H65: 280 | I65: 120 | J65: 280 | K65: 280 | L65: 280
A66: 산림축산과 | B66: 예천읍 충효로 김경동 외 7명 (대상자 내역 별지) | C66: 낙농헬퍼(도우미) 지원사업 | D66: 민간경상사업보조 | E66: 민간경상사업보조 | F66: 120천원 * 100회 * 60% | G66: 12,000 | H66: 7,200 | I66: 4,800 | J66: 7,200 | K66: 7,200 | L66: 7,200
A67: 산림축산과 | B67: 풍양면 풍덕길 159 박현우 | C67: 착유용 무주유식 진공펌프 지원사업 | D67: 민간자본사업보조 | E67: 민간자본사업보조 | F67: 15,000천원 * 1대 * 50% | G67: 15,000 | H67: 7,500 | I67: 7,500 | J67: 7,500 | K67: 7,500 | L67: 7,500
A68: 산림축산과 | B68: 예천읍 충효로 윤재연 외 1명 (대상자 내역 별지) | C68: 축산물 HACCP 컨설팅(한우·육계) 지원 | D68: 민간자본사업보조 | E68: 민간자본사업보조 | F68: 6,000천원 * 2개소 * 70% | G68: 12,000 | H68: 8,400 | I68: 3,600 | J68: 8,400 | K68: 8,400 | L68: 8,400
A69: 산림축산과 | B69: 풍양면 삼강로 노영한 | C69: 축산물 HACCP 컨설팅(젖소·돼지) 지원 | D69: 민간자본사업보조 | E69: 민간자본사업보조 | F69: 8,000천원 * 1개소 * 70% | G69: 8,000 | H69: 5,600 | I69: 2,400 | J69: 5,600 | K69: 5,600 | L69: 5,600
A70: 산림축산과 | B70: 용문면 선동길 134-11 김구진 외 2명 (대상자 내역 별지) | C70: 축산분뇨처리용 톱밥지원사업 | D70: 민간자본사업보조 | E70: 민간자본사업보조 | F70: 3천원 * 520포 * 50% | G70: 1,560 | H70: 780 | I70: 780 | J70: 780 | K70: 780 | L70: 780
A71: 건축과 소계 | C71: =SUBTOTAL(103,C72)&"건" -> 1건 | G71: =SUBTOTAL(9,G72) -> 125,000 | H71: =SUBTOTAL(9,H72:H72) -> 125,000 | I71: =SUBTOTAL(9,I72) -> 0 | J71: 125,000 | K71: 125,000 | L71: 125,000
A72: 건축과 | B72: 예천읍 용산길 158 권분순 외 134명 (대상자 내역 별지) | C72: 농촌빈집정비지원사업 | D72: 민간자본사업보조 | E72: 민간자본사업보조 | F72: 125,000천원 * 1식 | G72: 125,000 | H72: 125,000 | J72: 125,000 | K72: 125,000 | L72: 125,000
A73: 농업기술센터 소계 | C73: =SUBTOTAL(103,C74:C85)&"건" -> 1건 | G73: =SUBTOTAL(9,G74) -> 6,000 | H73: =SUBTOTAL(9,H74:H74) -> 6,000 | I73: =SUBTOTAL(9,I74) -> 0 | J73: 6,000 | K73: 6,000 | L73: 6,000
A74: 농업기술센터 | B74: 예천여자고등학교 외 5개교 (대상자 내역 별지) | C74: 학생4-H회원 과제활동 지원사업 | D74: 교육기관에대한보조 | E74: 교육기관에대한보조 | F74: 1,000,000원 * 6개교 | G74: =SUM(H74:I74) -> 6,000 | H74: 6,000 | I74: 0 | J74: 6,000 | K74: 6,000 | L74: 6,000

Sheet 대상자별지내역
A1: 제2회 예천군 보조금심의위원회 대상자내역 별지 조서
K2: (단위 : 천원)
A3: 부서명 | D3: 보 조 사 업 명 | E3: 과목명 | F3: 사 업 내 용 | G3: 계 | H3: 보조금 | I3: 자부담 | J3: 1차(해당부서) | K3: 2차(예산부서) | L3: 3차(위원회)
B4: 주소 | C4: 성명
A5: 소계 | D5: =SUBTOTAL(103,D6:D17) -> 12 | G5: =SUBTOTAL(9,G6:G17) -> 18,044 | H5: 18,000 | I5: 44 | J5: 18,000 | K5: 18,000 | L5: 18,000
A6: 주민복지실 | B6: 예천읍 | C6: 예천읍체육회(황○도) | D6: 읍면 어버이날 지원 | E6: 사회복지사업보조 | F6: 제47회 어버이날 행사지원 | G6: =SUM(H6:I6) -> 4,644 | H6: 4,600 | I6: 44 | J6: 4,600 | K6: 4,600 | L6: 4,600
A7: 주민복지실 | B7: 용문면 | C7: 용문면 새마을부녀회 (김○순) | D7: 읍면 어버이날 지원 | E7: 사회복지사업보조 | F7: 제47회 어버이날 행사지원 | G7: =SUM(H7:I7) -> 1,330 | H7: 1,330 | J7: 1,330 | K7: 1,330 | L7: 1,330
A8: 주민복지실 | B8: 효자면 | C8: 효자면새마을부녀회 (임○숙) | D8: 읍면 어버이날 지원 | E8: 사회복지사업보조 | F8: 제47회 어버이날 행사지원 | G8: 510 | H8: 510 | J8: 510 | K8: 510 | L8: 510
A9: 주민복지실 | B9: 은풍면 | C9: 예천군새마을회 은풍면부녀회(최○숙) | D9: 읍면 어버이날 지원 | E9: 사회복지사업보조 | F9: 제47회 어버이날 행사지원 | G9: 700 | H9: 700 | J9: 700 | K9: 700 | L9: 700
A10: 주민복지실 | B10: 감천면 | C10: 새마을지도자 감천면협의회(김○년) | D10: 읍면 어버이날 지원 | E10: 사회복지사업보조 | F10: 제47회 어버이날 행사지원 | G10: 1,440 | H10: 1,440 | J10: 1,440 | K10: 1,440 | L10: 1,440
A11: 주민복지실 | B11: 보문면 | C11: 보문면 새마을지도자회 (송○봉) | D11: 읍면 어버이날 지원 | E11: 사회복지사업보조 | F11: 제47회 어버이날 행사지원 | G11: 940 | H11: 940 | J11: 940 | K11: 940 | L11: 940
A12: 주민복지실 | B12: 호명면 | C12: 호명면이장연합회(김○복) | D12: 읍면 어버이날 지원 | E12: 사회복지사업보조 | F12: 제47회 어버이날 행사지원 | G12: 1,780 | H12: 1,780 | J12: 1,780 | K12: 1,780 | L12: 1,780
A13: 주민복지실 | B13: 유천면 | C13: 유천면새마을부녀회 (손○숙) | D13: 읍면 어버이날 지원 | E13: 사회복지사업보조 | F13: 제47회 어버이날 행사지원 | G13: 1,190 | H13: 1,190 | J13: 1,190 | K13: 1,190 | L13: 1,190
A14: 주민복지실 | B14: 용궁면 | C14: 용궁면 새마을부녀회 (권○주) | D14: 읍면 어버이날 지원 | E14: 사회복지사업보조 | F14: 제47회 어버이날 행사지원 | G14: 1,340 | H14: 1,340 | J14: 1,340 | K14: 1,340 | L14: 1,340
A15: 주민복지실 | B15: 개포면 | C15: 개포면체육회(김○태) | D15: 읍면 어버이날 지원 | E15: 사회복지사업보조 | F15: 제47회 어버이날 행사지원 | G15: 920 | H15: 920 | J15: 920 | K15: 920 | L15: 920
A16: 주민복지실 | B16: 지보로 | C16: 지보면이장협의희(정○영) | D16: 읍면 어버이날 지원 | E16: 사회복지사업보조 | F16: 제47회 어버이날 행사지원 | G16: 1,550 | H16: 1,550 | J16: 1,550 | K16: 1,550 | L16: 1,550
A17: 주민복지실 | B17: 풍양면 | C17: 예천새마을회 풍양면부녀회(최○숙) | D17: 읍면 어버이날 지원 | E17: 사회복지사업보조 | F17: 제47회 어버이날 행사지원 | G17: 1,700 | H17: 1,700 | J17: 1,700 | K17: 1,700 | L17: 1,700
A18: 소계 | D18: =SUBTOTAL(103,D19:D27) -> 9 | G18: =SUBTOTAL(9,G19:G27) -> 74,550 | H18: =SUBTOTAL(9,H19:H27) -> 63,000 | I18: =SUBTOTAL(9,I19:I27) -> 11,550 | J18: 63,000 | K18: 63,000 | L18: 63,000
A19: 문화관광과 | B19: 예천읍 | C19: 예천불교총연합회 | D19: 종무활동 지원사업(개심사지연등행사) | E19: 민간경상사업보조 | F19: <예천개심사지 연등회 개최> 전기및 구조물설치 : 23,500천원 홍보비 : 3,000천원 다례제 제물 1,500천원 공연비 : 5,000천원 제등행렬 및 유등 운반비 :7,500천원 식대 : 4,500천원 | G19: 45,000 | H19: 35,000 | I19: 10,000 | J19: 35,000 | K19: 35,000 | L19: 35,000
A20: 문화관광과 | B20: 예천읍 | C20: 예천기독교연합회 | D20: 종무활동 지원사업(성탄트리설치) | E20: 민간경상사업보조 | F20: 성탄트리설치비 2식 * 10,000천원 | G20: 20,000 | H20: 20,000 | I20: 0 | J20: 20,000 | K20: 20,000 | L20: 20,000
A21: 문화관광과 | B21: 예천 | C21: 예천만권당 작은도서관 | D21: 작은도서관 도서구입 지원 사업 | E21: 민간경상사업보조 | F21: 도서구입 1,600천원 * 1식 | G21: 1,600 | H21: 1,100 | I21: 500 | J21: 1,100 | K21: 1,100 | L21: 1,100
A22: 문화관광과 | B22: 예천읍 | C22: 새마을문고 예천군지부 | D22: 작은도서관 도서구입 지원 사업 | E22: 민간경상사업보조 | F22: 도서구입 1,150천원 * 1식 | G22: 1,150 | H22: 1,000 | I22: 150 | J22: 1,000 | K22: 1,000 | L22: 1,000
A23: 문화관광과 | B23: 예천읍 | C23: 우리들 작은도서관 | D23: 작은도서관 도서구입 지원 사업 | E23: 민간경상사업보조 | F23: 도서구입 1,200천원 * 1식 | G23: 1,200 | H23: 1,200 | I23: 0 | J23: 1,200 | K23: 1,200 | L23: 1,200
A24: 문화관광과 | B24: 호명면 | C24: 경북도청아이파크 작은도서관 | D24: 작은도서관 도서구입 지원 사업 | E24: 민간경상사업보조 | F24: 도서구입 1,700천원 * 1식 | G24: 1,700 | H24: 1,200 | I24: 500 | J24: 1,200 | K24: 1,200 | L24: 1,200
A25: 문화관광과 | B25: 호명면 | C25: 경북도청우방아이유쉘1차 작은도서관 | D25: 작은도서관 도서구입 지원 사업 | E25: 민간경상사업보조 | F25: 도서구입 1,500천원 * 1식 | G25: 1,500 | H25: 1,100 | I25: 400 | J25: 1,100 | K25: 1,100 | L25: 1,100
A26: 문화관광과 | B26: 호명면 | C26: 꿈터도서관 | D26: 작은도서관 도서구입 지원 사업 | E26: 민간경상사업보조 | F26: 도서구입 1,200천원 * 1식 | G26: 1,200 | H26: 1,200 | I26: 0 | J26: 1,200 | K26: 1,200 | L26: 1,200
A27: 문화관광과 | B27: 풍양면 | C27: 청운작은도서관 | D27: 작은도서관 도서구입 지원 사업 | E27: 민간경상사업보조 | F27: 도서구입 1,200천원 * 1식 | G27: 1,200 | H27: 1,200 | I27: 0 | J27: 1,200 | K27: 1,200 | L27: 1,200
A28: 소계 | D28: =SUBTOTAL(103,D29:D46) -> 18 | G28: =SUM(G29:G46) -> 500,000 | H28: 150,000 | I28: 350,000 | J28: 150,000 | K28: 150,000 | L28: 150,000
A29: 환경관리과 | B29: 보문면 | C29: (주)동서전기 | D29: 예천군 전기자동차 민간보급 사업 | E29: 민간자본사업보조 | F29: 50,000천원 * 1식 * 30% | G29: 50,000 | H29: 15,000 | I29: 35,000 | J29: 15,000 | K29: 15,000 | L29: 15,000
A30: 환경관리과 | B30: 효자면 | C30: 조○호 | D30: 예천군 전기자동차 민간보급 사업 | E30: 민간자본사업보조 | F30: 50,000천원 * 1식 * 30% | G30: 50,000 | H30: 15,000 | I30: 35,000 | J30: 15,000 | K30: 15,000 | L30: 15,000
A31: 환경관리과 | B31: 호명면 | C31: 김○섭 | D31: 예천군 전기자동차 민간보급 사업 | E31: 민간자본사업보조 | F31: 50,000천원 * 1식 * 30% | G31: 50,000 | H31: 15,000 | I31: 35,000 | J31: 15,000 | K31: 15,000 | L31: 15,000
A32: 환경관리과 | B32: 호명면 | C32: 신○식 | D32: 예천군 전기자동차 민간보급 사업 | E32: 민간자본사업보조 | F32: 50,000천원 * 1식 * 30% | G32: 50,000 | H32: 15,000 | I32: 35,000 | J32: 15,000 | K32: 15,000 | L32: 15,000
A33: 환경관리과 | B33: 호명면 | C33: 김○민 | D33: 예천군 전기자동차 민간보급 사업 | E33: 민간자본사업보조 | F33: 50,000천원 * 1식 * 30% | G33: 50,000 | H33: 15,000 | I33: 35,000 | J33: 15,000 | K33: 15,000 | L33: 15,000
A34: 환경관리과 | B34: 예천군 | C34: 노○국 | D34: 예천군 전기자동차 민간보급 사업 | E34: 민간자본사업보조 | F34: 50,000천원 * 1식 * 30% | G34: 50,000 | H34: 15,000 | I34: 35,000 | J34: 15,000 | K34: 15,000 | L34: 15,000
A35: 환경관리과 | B35: 호명면 | C35: 조○래 | D35: 예천군 전기자동차 민간보급 사업 | E35: 민간자본사업보조 | F35: 50,000천원 * 1식 * 30% | G35: 50,000 | H35: 15,000 | I35: 35,000 | J35: 15,000 | K35: 15,000 | L35: 15,000
A36: 환경관리과 | B36: 감천면 | C36: 이○호 | D36: 예천군 전기자동차 민간보급 사업 | E36: 민간자본사업보조 | F36: 50,000천원 * 1식 * 30% | G36: 50,000 | H36: 15,000 | I36: 35,000 | J36: 15,000 | K36: 15,000 | L36: 15,000
A37: 환경관리과 | B37: 호명면 | C37: 김○수 | D37: 예천군 전기자동차 민간보급 사업 | E37: 민간자본사업보조 | F37: 50,000천원 * 1식 * 30% | G37: 50,000 | H37: 15,000 | I37: 35,000 | J37: 15,000 | K37: 15,000 | L37: 15,000
A38: 환경관리과 | B38: 호명면 | C38: 정○수 | D38: 예천군 전기자동차 민간보급 사업 | E38: 민간자본사업보조 | F38: 50,000천원 * 1식 * 30% | G38: 50,000 | H38: 15,000 | I38: 35,000 | J38: 15,000 | K38: 15,000 | L38: 15,000
A39: 환경관리과 | B39: 호명면 | C39: 우○석 | D39: 예천군 전기자동차 민간보급 사업 | E39: 민간자본사업보조 | F39: 예비후보자
A40: 환경관리과 | B40: 호명면 | C40: 유○욱 | D40: 예천군 전기자동차 민간보급 사업 | E40: 민간자본사업보조 | F40: 예비후보자
A41: 환경관리과 | B41: 예천읍 | C41: 심○용 | D41: 예천군 전기자동차 민간보급 사업 | E41: 민간자본사업보조 | F41: 예비후보자
A42: 환경관리과 | B42: 호명면 | C42: 최○성 | D42: 예천군 전기자동차 민간보급 사업 | E42: 민간자본사업보조 | F42: 예비후보자
A43: 환경관리과 | B43: 호명면 | C43: 김○호 | D43: 예천군 전기자동차 민간보급 사업 | E43: 민간자본사업보조 | F43: 예비후보자
A44: 환경관리과 | B44: 호명면 | C44: 최○경 | D44: 예천군 전기자동차 민간보급 사업 | E44: 민간자본사업보조 | F44: 예비후보자
A45: 환경관리과 | B45: 예천읍 | C45: 노○오 | D45: 예천군 전기자동차 민간보급 사업 | E45: 민간자본사업보조 | F45: 예비후보자
A46: 환경관리과 | B46: 지보면 | C46: 김○리 | D46: 예천군 전기자동차 민간보급 사업 | E46: 민간자본사업보조 | F46: 예비후보자
A47: 환경관리과 | B47: 예천읍 | C47: 황○섭 | D47: 야생동물 피해예방시설 설치 지원사업 | E47: 민간자본사업보조 | F47: 3,000천원 * 1식 * 60% | G47: 3,000 | H47: 1,800 | I47: 1,200 | J47: 1,800 | K47: 1,800 | L47: 1,800
A48: 환경관리과 | B48: 예천읍 | C48: 구○룡 | D48: 야생동물 피해예방시설 설치 지원사업 | E48: 민간자본사업보조 | F48: 3,750천원 * 1식 * 60% | G48: 3,750 | H48: 2,250 | I48: 1,500 | J48: 2,250 | K48: 2,250 | L48: 2,250
A49: 환경관리과 | B49: 예천읍 | C49: 이○우 | D49: 야생동물 피해예방시설 설치 지원사업 | E49: 민간자본사업보조 | F49: 90천원 * 1식 * 60% | G49: 90 | H49: 54 | I49: 36 | J49: 54 | K49: 54 | L49: 54
A50: 환경관리과 | B50: 예천읍 | C50: 권○수 | D50: 야생동물 피해예방시설 설치 지원사업 | E50: 민간자본사업보조 | F50: 5,250천원 * 1식 * 60% | G50: 5,250 | H50: 3,000 | I50: 2,250 | J50: 3,000 | K50: 3,000 | L50: 3,000
A51: 환경관리과 | B51: 예천읍 | C51: 박○택 | D51: 야생동물 피해예방시설 설치 지원사업 | E51: 민간자본사업보조 | F51: 3,844천원 * 1식 * 60% | G51: 3,844 | H51: 2,306 | I51: 1,538 | J51: 2,306 | K51: 2,306 | L51: 2,306
A52: 환경관리과 | B52: 예천읍 | C52: 심○보 | D52: 야생동물 피해예방시설 설치 지원사업 | E52: 민간자본사업보조 | F52: 7,500천원 * 1식 * 60% | G52: 7,500 | H52: 3,000 | I52: 4,500 | J52: 3,000 | K52: 3,000 | L52: 3,000
A53: 환경관리과 | B53: 예천읍 | C53: 홍○대 | D53: 야생동물 피해예방시설 설치 지원사업 | E53: 민간자본사업보조 | F53: 3,685천원 * 1식 * 60% | G53: 3,685 | H53: 2,211 | I53: 1,474 | J53: 2,211 | K53: 2,211 | L53: 2,211
A54: 환경관리과 | B54: 용문면 | C54: 황○달 | D54: 야생동물 피해예방시설 설치 지원사업 | E54: 민간자본사업보조 | F54: 4,500천원*1식*60% | G54: 4,500 | H54: 2,700 | I54: 1,800 | J54: 2,700 | K54: 2,700 | L54: 2,700
A55: 환경관리과 | B55: 용문면 | C55: 김○숙 | D55: 야생동물 피해예방시설 설치 지원사업 | E55: 민간자본사업보조 | F55: 900천원*1식*60% | G55: 900 | H55: 540 | I55: 360 | J55: 540 | K55: 540 | L55: 540
A56: 환경관리과 | B56: 예천읍 | C56: 박○호 | D56: 야생동물 피해예방시설 설치 지원사업 | E56: 민간자본사업보조 | F56: 4,500천원*1식*60% | G56: 4,500 | H56: 2,700 | I56: 1,800 | J56: 2,700 | K56: 2,700 | L56: 2,700
A57: 환경관리과 | B57: 용문면 | C57: 임○규 | D57: 야생동물 피해예방시설 설치 지원사업 | E57: 민간자본사업보조 | F57: 7,500천원*1식*60% | G57: 7,500 | H57: 3,000 | I57: 4,500 | J57: 3,000 | K57: 3,000 | L57: 3,000
A58: 환경관리과 | B58: 용문면 | C58: 엄○태 | D58: 야생동물 피해예방시설 설치 지원사업 | E58: 민간자본사업보조 | F58: 1,500천원*1식*60% | G58: 1,500 | H58: 900 | I58: 600 | J58: 900 | K58: 900 | L58: 900
A59: 환경관리과 | B59: 용문면 | C59: 김○기 | D59: 야생동물 피해예방시설 설치 지원사업 | E59: 민간자본사업보조 | F59: 5,100천원*1식*60% | G59: 5,100 | H59: 3,000 | I59: 2,100 | J59: 3,000 | K59: 3,000 | L59: 3,000
A60: 환경관리과 | B60: 예천읍 | C60: 전○하 | D60: 야생동물 피해예방시설 설치 지원사업 | E60: 민간자본사업보조 | F60: 4,500천원*1식*60% | G60: 4,500 | H60: 2,700 | I60: 1,800 | J60: 2,700 | K60: 2,700 | L60: 2,700
A61: 환경관리과 | B61: 용문면 | C61: 정○식 | D61: 야생동물 피해예방시설 설치 지원사업 | E61: 민간자본사업보조 | F61: 5,250천원*1식*60% | G61: 5,250 | H61: 3,000 | I61: 2,250 | J61: 3,000 | K61: 3,000 | L61: 3,000
A62: 환경관리과 | B62: 용문면 | C62: 신○영 | D62: 야생동물 피해예방시설 설치 지원사업 | E62: 민간자본사업보조 | F62: 5,250천원*1식*60% | G62: 5,250 | H62: 3,000 | I62: 2,250 | J62: 3,000 | K62: 3,000 | L62: 3,000
A63: 환경관리과 | B63: 용문면 | C63: 권○수 | D63: 야생동물 피해예방시설 설치 지원사업 | E63: 민간자본사업보조 | F63: 3,750천원*1식*60% | G63: 3,750 | H63: 2,250 | I63: 1,500 | J63: 2,250 | K63: 2,250 | L63: 2,250
A64: 환경관리과 | B64: 효자면 | C64: 김○록 | D64: 야생동물 피해예방시설 설치 지원사업 | E64: 민간자본사업보조 | F64: 4,500천원*1식*60% | G64: 4,500 | H64: 2,700 | I64: 1,800 | J64: 2,700 | K64: 2,700 | L64: 2,700
A65: 환경관리과 | B65: 효자면 | C65: 최○근 | D65: 야생동물 피해예방시설 설치 지원사업 | E65: 민간자본사업보조 | F65: 7,950천원*1식*60% | G65: 7,950 | H65: 3,000 | I65: 4,950 | J65: 3,000 | K65: 3,000 | L65: 3,000
A66: 환경관리과 | B66: 효자면 | C66: 김○석 | D66: 야생동물 피해예방시설 설치 지원사업 | E66: 민간자본사업보조 | F66: 8,400천원*1식*60% | G66: 8,400 | H66: 3,000 | I66: 5,400 | J66: 3,000 | K66: 3,000 | L66: 3,000
A67: 환경관리과 | B67: 효자면 | C67: 김○열 | D67: 야생동물 피해예방시설 설치 지원사업 | E67: 민간자본사업보조 | F67: 7,650천원*1식*60% | G67: 7,650 | H67: 3,000 | I67: 4,650 | J67: 3,000 | K67: 3,000 | L67: 3,000
A68: 환경관리과 | B68: 예천읍 | C68: 신○욱 | D68: 야생동물 피해예방시설 설치 지원사업 | E68: 민간자본사업보조 | F68: 8,400천원*1식*60% | G68: 8,400 | H68: 3,000 | I68: 5,400 | J68: 3,000 | K68: 3,000 | L68: 3,000
A69: 환경관리과 | B69: 효자면 | C69: 안○주 | D69: 야생동물 피해예방시설 설치 지원사업 | E69: 민간자본사업보조 | F69: 6,300천원*1식*60% | G69: 6,300 | H69: 3,000 | I69: 3,300 | J69: 3,000 | K69: 3,000 | L69: 3,000
A70: 환경관리과 | B70: 효자면 | C70: 강○희 | D70: 야생동물 피해예방시설 설치 지원사업 | E70: 민간자본사업보조 | F70: 7,500천원*1식*60% | G70: 7,500 | H70: 3,000 | I70: 4,500 | J70: 3,000 | K70: 3,000 | L70: 3,000
A71: 환경관리과 | B71: 효자면 | C71: 조○제 | D71: 야생동물 피해예방시설 설치 지원사업 | E71: 민간자본사업보조 | F71: 4,650천원*1식*60% | G71: 4,650 | H71: 2,790 | I71: 1,860 | J71: 2,790 | K71: 2,790 | L71: 2,790
A72: 환경관리과 | B72: 효자면 | C72: 박○서 | D72: 야생동물 피해예방시설 설치 지원사업 | E72: 민간자본사업보조 | F72: 6,450천원*1식*60% | G72: 6,450 | H72: 3,000 | I72: 3,450 | J72: 3,000 | K72: 3,000 | L72: 3,000
A73: 환경관리과 | B73: 효자면 | C73: 정○욱 | D73: 야생동물 피해예방시설 설치 지원사업 | E73: 민간자본사업보조 | F73: 4,800천원*1식*60% | G73: 4,800 | H73: 2,880 | I73: 1,920 | J73: 2,880 | K73: 2,880 | L73: 2,880
A74: 환경관리과 | B74: 효자면 | C74: 남○노 | D74: 야생동물 피해예방시설 설치 지원사업 | E74: 민간자본사업보조 | F74: 6,000천원*1식*60% | G74: 6,000 | H74: 3,000 | I74: 3,000 | J74: 3,000 | K74: 3,000 | L74: 3,000
A75: 환경관리과 | B75: 효자면 | C75: 원○창 | D75: 야생동물 피해예방시설 설치 지원사업 | E75: 민간자본사업보조 | F75: 15,750천원*1식*60% | G75: 15,750 | H75: 3,000 | I75: 12,750 | J75: 3,000 | K75: 3,000 | L75: 3,000
A76: 환경관리과 | B76: 효자면 | C76: 김○주 | D76: 야생동물 피해예방시설 설치 지원사업 | E76: 민간자본사업보조 | F76: 3,000천원*1식*60% | G76: 3,000 | H76: 1,800 | I76: 1,200 | J76: 1,800 | K76: 1,800 | L76: 1,800
A77: 환경관리과 | B77: 효자면 | C77: 신○춘 | D77: 야생동물 피해예방시설 설치 지원사업 | E77: 민간자본사업보조 | F77: 4,200천원*1식*60% | G77: 4,200 | H77: 2,520 | I77: 1,680 | J77: 2,520 | K77: 2,520 | L77: 2,520
A78: 환경관리과 | B78: 효자면 | C78: 전○한 | D78: 야생동물 피해예방시설 설치 지원사업 | E78: 민간자본사업보조 | F78: 4,350천원*1식*60% | G78: 4,350 | H78: 2,610 | I78: 1,740 | J78: 2,610 | K78: 2,610 | L78: 2,610
A79: 환경관리과 | B79: 효자면 | C79: 김○동 | D79: 야생동물 피해예방시설 설치 지원사업 | E79: 민간자본사업보조 | F79: 8,250천원*1식*60% | G79: 8,250 | H79: 3,000 | I79: 5,250 | J79: 3,000 | K79: 3,000 | L79: 3,000
A80: 환경관리과 | B80: 은풍면 | C80: 신○문 | D80: 야생동물 피해예방시설 설치 지원사업 | E80: 민간자본사업보조 | F80: 3,450천원*1식*60% | G80: 3,450 | H80: 2,070 | I80: 1,380 | J80: 2,070 | K80: 2,070 | L80: 2,070
A81: 환경관리과 | B81: 용문면 | C81: 권○하 | D81: 야생동물 피해예방시설 설치 지원사업 | E81: 민간자본사업보조 | F81: 5,775천원*1식*60% | G81: 5,775 | H81: 3,000 | I81: 2,775 | J81: 3,000 | K81: 3,000 | L81: 3,000
A82: 환경관리과 | B82: 은풍면 | C82: 장○덕 | D82: 야생동물 피해예방시설 설치 지원사업 | E82: 민간자본사업보조 | F82: 5,250천원*1식*60% | G82: 5,250 | H82: 3,000 | I82: 2,250 | J82: 3,000 | K82: 3,000 | L82: 3,000
A83: 환경관리과 | B83: 은풍면 | C83: 권○섭 | D83: 야생동물 피해예방시설 설치 지원사업 | E83: 민간자본사업보조 | F83: 4,575천원*1식*60% | G83: 4,575 | H83: 2,745 | I83: 1,830 | J83: 2,745 | K83: 2,745 | L83: 2,745
A84: 환경관리과 | B84: 은풍면 | C84: 권○걸 | D84: 야생동물 피해예방시설 설치 지원사업 | E84: 민간자본사업보조 | F84: 3,825천원*1식*60% | G84: 3,825 | H84: 2,295 | I84: 1,530 | J84: 2,295 | K84: 2,295 | L84: 2,295
A85: 환경관리과 | B85: 은풍면 | C85: 권○섭 | D85: 야생동물 피해예방시설 설치 지원사업 | E85: 민간자본사업보조 | F85: 3,406천원*1식*60% | G85: 3,406 | H85: 2,044 | I85: 1,362 | J85: 2,044 | K85: 2,044 | L85: 2,044
A86: 환경관리과 | B86: 은풍면 | C86: 배○규 | D86: 야생동물 피해예방시설 설치 지원사업 | E86: 민간자본사업보조 | F86: 4,286천원*1식*60% | G86: 4,286 | H86: 2,572 | I86: 1,714 | J86: 2,572 | K86: 2,572 | L86: 2,572
A87: 환경관리과 | B87: 은풍면 | C87: 성○장 | D87: 야생동물 피해예방시설 설치 지원사업 | E87: 민간자본사업보조 | F87: 3,900천원*1식*60% | G87: 3,900 | H87: 2,340 | I87: 1,560 | J87: 2,340 | K87: 2,340 | L87: 2,340
A88: 환경관리과 | B88: 감천면 | C88: 김○배 | D88: 야생동물 피해예방시설 설치 지원사업 | E88: 민간자본사업보조 | F88: 190천원*1식*60% | G88: 190 | H88: 114 | I88: 76 | J88: 114 | K88: 114 | L88: 114
A89: 환경관리과 | B89: 감천면 | C89: 윤○희 | D89: 야생동물 피해예방시설 설치 지원사업 | E89: 민간자본사업보조 | F89: 5,250천원*1식*60% | G89: 5,250 | H89: 3,000 | I89: 2,250 | J89: 3,000 | K89: 3,000 | L89: 3,000
A90: 환경관리과 | B90: 감천면 | C90: 전○표 | D90: 야생동물 피해예방시설 설치 지원사업 | E90: 민간자본사업보조 | F90: 114천원*1식*60% | G90: 114 | H90: 68 | I90: 46 | J90: 68 | K90: 68 | L90: 68
A91: 환경관리과 | B91: 감천면 | C91: 민○원 | D91: 야생동물 피해예방시설 설치 지원사업 | E91: 민간자본사업보조 | F91: 2,100천원*1식*60% | G91: 2,100 | H91: 1,500 | I91: 600 | J91: 1,500 | K91: 1,500 | L91: 1,500
A92: 환경관리과 | B92: 감천면 | C92: 송○수 | D92: 야생동물 피해예방시설 설치 지원사업 | E92: 민간자본사업보조 | F92: 10,500천원*1식*60% | G92: 10,500 | H92: 3,000 | I92: 7,500 | J92: 3,000 | K92: 3,000 | L92: 3,000
A93: 환경관리과 | B93: 감천면 | C93: 조○출 | D93: 야생동물 피해예방시설 설치 지원사업 | E93: 민간자본사업보조 | F93: 6,000천원*1식*60% | G93: 6,000 | H93: 3,000 | I93: 3,000 | J93: 3,000 | K93: 3,000 | L93: 3,000
A94: 환경관리과 | B94: 감천면 | C94: 김○하 | D94: 야생동물 피해예방시설 설치 지원사업 | E94: 민간자본사업보조 | F94: 76천원*1식*60% | G94: 76 | H94: 46 | I94: 30 | J94: 46 | K94: 46 | L94: 46
A95: 환경관리과 | B95: 감천면 | C95: 송○선 | D95: 야생동물 피해예방시설 설치 지원사업 | E95: 민간자본사업보조 | F95: 4,500천원*1식*60% | G95: 4,500 | H95: 2,700 | I95: 1,800 | J95: 2,700 | K95: 2,700 | L95: 2,700
A96: 환경관리과 | B96: 보문면 | C96: 한○순 | D96: 야생동물 피해예방시설 설치 지원사업 | E96: 민간자본사업보조 | F96: 2,445천원*1식*60% | G96: 2,445 | H96: 1,467 | I96: 978 | J96: 1,467 | K96: 1,467 | L96: 1,467
A97: 환경관리과 | B97: 보문면 | C97: 박○우 | D97: 야생동물 피해예방시설 설치 지원사업 | E97: 민간자본사업보조 | F97: 1,565천원*1식*60% | G97: 1,565 | H97: 939 | I97: 626 | J97: 939 | K97: 939 | L97: 939
A98: 환경관리과 | B98: 보문면 | C98: 장○상 | D98: 야생동물 피해예방시설 설치 지원사업 | E98: 민간자본사업보조 | F98: 2,293천원*1식*60% | G98: 2,293 | H98: 1,376 | I98: 917 | J98: 1,376 | K98: 1,376 | L98: 1,376
A99: 환경관리과 | B99: 보문면 | C99: 안○부 | D99: 야생동물 피해예방시설 설치 지원사업 | E99: 민간자본사업보조 | F99: 1,744천원*1식*60% | G99: 1,744 | H99: 1,046 | I99: 698 | J99: 1,046 | K99: 1,046 | L99: 1,046
A100: 환경관리과 | B100: 보문면 | C100: 반○철 | D100: 야생동물 피해예방시설 설치 지원사업 | E100: 민간자본사업보조 | F100: 470천원*1식*60% | G100: 470 | H100: 282 | I100: 188 | J100: 282 | K100: 282 | L100: 282
A101: 환경관리과 | B101: 보문면 | C101: 김○진 | D101: 야생동물 피해예방시설 설치 지원사업 | E101: 민간자본사업보조 | F101: 2,141천원*1식*60% | G101: 2,141 | H101: 1,285 | I101: 856 | J101: 1,285 | K101: 1,285 | L101: 1,285
A102: 환경관리과 | B102: 감천면 | C102: 김○한 | D102: 야생동물 피해예방시설 설치 지원사업 | E102: 민간자본사업보조 | F102: 7,500천원*1식*60% | G102: 7,500 | H102: 3,000 | I102: 4,500 | J102: 3,000 | K102: 3,000 | L102: 3,000
A103: 환경관리과 | B103: 보문면 | C103: 박○극 | D103: 야생동물 피해예방시설 설치 지원사업 | E103: 민간자본사업보조 | F103: 571천원*1식*60% | G103: 571 | H103: 343 | I103: 228 | J103: 343 | K103: 343 | L103: 343
A104: 환경관리과 | B104: 보문면 | C104: 박○희 | D104: 야생동물 피해예방시설 설치 지원사업 | E104: 민간자본사업보조 | F104: 530천원*1식*60% | G104: 530 | H104: 318 | I104: 212 | J104: 318 | K104: 318 | L104: 318
A105: 환경관리과 | B105: 보문면 | C105: 이○우 | D105: 야생동물 피해예방시설 설치 지원사업 | E105: 민간자본사업보조 | F105: 2,280천원*1식*60% | G105: 2,280 | H105: 1,368 | I105: 912 | J105: 1,368 | K105: 1,368 | L105: 1,368
A106: 환경관리과 | B106: 호명면 | C106: 박○환 | D106: 야생동물 피해예방시설 설치 지원사업 | E106: 민간자본사업보조 | F106: 2,370천원*1식*60% | G106: 2,370 | H106: 1,422 | I106: 948 | J106: 1,422 | K106: 1,422 | L106: 1,422
A107: 환경관리과 | B107: 호명면 | C107: 임○무 | D107: 야생동물 피해예방시설 설치 지원사업 | E107: 민간자본사업보조 | F107: 4,185천원*1식*60% | G107: 4,185 | H107: 2,511 | I107: 1,674 | J107: 2,511 | K107: 2,511 | L107: 2,511
A108: 환경관리과 | B108: 유천면 | C108: 최○묵 | D108: 야생동물 피해예방시설 설치 지원사업 | E108: 민간자본사업보조 | F108: 2,700천원*1식*60% | G108: 2,700 | H108: 1,620 | I108: 1,080 | J108: 1,620 | K108: 1,620 | L108: 1,620
A109: 환경관리과 | B109: 유천면 | C109: 이○조 | D109: 야생동물 피해예방시설 설치 지원사업 | E109: 민간자본사업보조 | F109: 4,650천원*1식*60% | G109: 4,650 | H109: 2,790 | I109: 1,860 | J109: 2,790 | K109: 2,790 | L109: 2,790
A110: 환경관리과 | B110: 유천면 | C110: 이○희 | D110: 야생동물 피해예방시설 설치 지원사업 | E110: 민간자본사업보조 | F110: 4,800천원*1식*60% | G110: 4,800 | H110: 2,880 | I110: 1,920 | J110: 2,880 | K110: 2,880 | L110: 2,880
A111: 환경관리과 | B111: 유천면 | C111: 조○국 | D111: 야생동물 피해예방시설 설치 지원사업 | E111: 민간자본사업보조 | F111: 4,650천원*1식*60% | G111: 4,650 | H111: 2,790 | I111: 1,860 | J111: 2,790 | K111: 2,790 | L111: 2,790
A112: 환경관리과 | B112: 유천면 | C112: 김○상 | D112: 야생동물 피해예방시설 설치 지원사업 | E112: 민간자본사업보조 | F112: 3,750천원*1식*60% | G112: 3,750 | H112: 2,250 | I112: 1,500 | J112: 2,250 | K112: 2,250 | L112: 2,250
A113: 환경관리과 | B113: 용궁면 | C113: 백○기 | D113: 야생동물 피해예방시설 설치 지원사업 | E113: 민간자본사업보조 | F113: 3,000천원*1식*60% | G113: 3,000 | H113: 1,800 | I113: 1,200 | J113: 1,800 | K113: 1,800 | L113: 1,800
A114: 환경관리과 | B114: 용궁면 | C114: 장○수 | D114: 야생동물 피해예방시설 설치 지원사업 | E114: 민간자본사업보조 | F114: 3,000천원*1식*60% | G114: 3,000 | H114: 1,800 | I114: 1,200 | J114: 1,800 | K114: 1,800 | L114: 1,800
A115: 환경관리과 | B115: 용궁면 | C115: 이○희 | D115: 야생동물 피해예방시설 설치 지원사업 | E115: 민간자본사업보조 | F115: 1,000천원*1식*60% | G115: 1,000 | H115: 600 | I115: 400 | J115: 600 | K115: 600 | L115: 600
A116: 환경관리과 | B116: 문경시 | C116: 임○배 | D116: 야생동물 피해예방시설 설치 지원사업 | E116: 민간자본사업보조 | F116: 4,500천원*1식*60% | G116: 4,500 | H116: 2,700 | I116: 1,800 | J116: 2,700 | K116: 2,700 | L116: 2,700
A117: 환경관리과 | B117: 용궁면 | C117: 박○순 | D117: 야생동물 피해예방시설 설치 지원사업 | E117: 민간자본사업보조 | F117: 5,000천원*1식*60% | G117: 5,000 | H117: 3,000 | I117: 2,000 | J117: 3,000 | K117: 3,000 | L117: 3,000
A118: 환경관리과 | B118: 용궁면 | C118: 송○수 | D118: 야생동물 피해예방시설 설치 지원사업 | E118: 민간자본사업보조 | F118: 3,000천원*1식*60% | G118: 3,000 | H118: 1,800 | I118: 1,200 | J118: 1,800 | K118: 1,800 | L118: 1,800
A119: 환경관리과 | B119: 개포면 | C119: 김○진 | D119: 야생동물 피해예방시설 설치 지원사업 | E119: 민간자본사업보조 | F119: 2,094천원*1식*60% | G119: 2,094 | H119: 1,256 | I119: 838 | J119: 1,256 | K119: 1,256 | L119: 1,256
A120: 환경관리과 | B120: 개포면 | C120: 신○환 | D120: 야생동물 피해예방시설 설치 지원사업 | E120: 민간자본사업보조 | F120: 2,700천원*1식*60% | G120: 2,700 | H120: 1,620 | I120: 1,080 | J120: 1,620 | K120: 1,620 | L120: 1,620
A121: 환경관리과 | B121: 개포면 | C121: 남○조 | D121: 야생동물 피해예방시설 설치 지원사업 | E121: 민간자본사업보조 | F121: 1,895천원*1식*60% | G121: 1,895 | H121: 1,137 | I121: 758 | J121: 1,137 | K121: 1,137 | L121: 1,137
A122: 환경관리과 | B122: 개포면 | C122: 고○은 | D122: 야생동물 피해예방시설 설치 지원사업 | E122: 민간자본사업보조 | F122: 3,000천원*1식*60% | G122: 3,000 | H122: 1,800 | I122: 1,200 | J122: 1,800 | K122: 1,800 | L122: 1,800
A123: 환경관리과 | B123: 개포면 | C123: 이○현 | D123: 야생동물 피해예방시설 설치 지원사업 | E123: 민간자본사업보조 | F123: 3,000천원*1식*60% | G123: 3,000 | H123: 1,800 | I123: 1,200 | J123: 1,800 | K123: 1,800 | L123: 1,800
A124: 환경관리과 | B124: 개포면 | C124: 백○섭 | D124: 야생동물 피해예방시설 설치 지원사업 | E124: 민간자본사업보조 | F124: 3,000천원*1식*60% | G124: 3,000 | H124: 1,800 | I124: 1,200 | J124: 1,800 | K124: 1,800 | L124: 1,800
A125: 환경관리과 | B125: 개포면 | C125: 최○규 | D125: 야생동물 피해예방시설 설치 지원사업 | E125: 민간자본사업보조 | F125: 3,300천원*1식*60% | G125: 3,300 | H125: 1,980 | I125: 1,320 | J125: 1,980 | K125: 1,980 | L125: 1,980
A126: 환경관리과 | B126: 개포면 | C126: 황○녀 | D126: 야생동물 피해예방시설 설치 지원사업 | E126: 민간자본사업보조 | F126: 4,500천원*1식*60% | G126: 4,500 | H126: 2,700 | I126: 1,800 | J126: 2,700 | K126: 2,700 | L126: 2,700
A127: 환경관리과 | B127: 지보면 | C127: 김○동 | D127: 야생동물 피해예방시설 설치 지원사업 | E127: 민간자본사업보조 | F127: 2,293천원*1식*60% | G127: 2,293 | H127: 1,376 | I127: 917 | J127: 1,376 | K127: 1,376 | L127: 1,376
A128: 환경관리과 | B128: 지보면 | C128: 남○섭 | D128: 야생동물 피해예방시설 설치 지원사업 | E128: 민간자본사업보조 | F128: 4,950천원*1식*60% | G128: 4,950 | H128: 2,970 | I128: 1,980 | J128: 2,970 | K128: 2,970 | L128: 2,970
A129: 환경관리과 | B129: 지보면 | C129: 박○만 | D129: 야생동물 피해예방시설 설치 지원사업 | E129: 민간자본사업보조 | F129: 2,491천원*1식*60% | G129: 2,491 | H129: 1,495 | I129: 996 | J129: 1,495 | K129: 1,495 | L129: 1,495
A130: 환경관리과 | B130: 지보면 | C130: 김○영 | D130: 야생동물 피해예방시설 설치 지원사업 | E130: 민간자본사업보조 | F130: 2,213천원*1식*60% | G130: 2,213 | H130: 1,328 | I130: 885 | J130: 1,328 | K130: 1,328 | L130: 1,328
A131: 환경관리과 | B131: 지보면 | C131: 전○운 | D131: 야생동물 피해예방시설 설치 지원사업 | E131: 민간자본사업보조 | F131: 3,804천원*1식*60% | G131: 3,804 | H131: 2,282 | I131: 1,522 | J131: 2,282 | K131: 2,282 | L131: 2,282
A132: 환경관리과 | B132: 지보면 | C132: 전○종 | D132: 야생동물 피해예방시설 설치 지원사업 | E132: 민간자본사업보조 | F132: 2,094천원*1식*60% | G132: 2,094 | H132: 1,256 | I132: 838 | J132: 1,256 | K132: 1,256 | L132: 1,256
A133: 환경관리과 | B133: 풍양면 | C133: 홍○호 | D133: 야생동물 피해예방시설 설치 지원사업 | E133: 민간자본사업보조 | F133: 4,500천원*1식*60% | G133: 4,500 | H133: 2,700 | I133: 1,800 | J133: 2,700 | K133: 2,700 | L133: 2,700
A134: 환경관리과 | B134: 풍양면 | C134: 윤○한 | D134: 야생동물 피해예방시설 설치 지원사업 | E134: 민간자본사업보조 | F134: 4,500천원*1식*60% | G134: 4,500 | H134: 2,700 | I134: 1,800 | J134: 2,700 | K134: 2,700 | L134: 2,700
A135: 환경관리과 | B135: 개포면 | C135: 엄○순 | D135: 야생동물 피해예방시설 설치 지원사업 | E135: 민간자본사업보조 | F135: 2,293천원*1식*60% | G135: 2,293 | H135: 1,376 | I135: 917 | J135: 1,376 | K135: 1,376 | L135: 1,376
A136: 환경관리과 | B136: 용궁면 | C136: 장○웅 | D136: 야생동물 피해예방시설 설치 지원사업 | E136: 민간자본사업보조 | F136: 2,094천원*1식*60% | G136: 2,094 | H136: 1,256 | I136: 838 | J136: 1,256 | K136: 1,256 | L136: 1,256
A137: 환경관리과 | B137: 용궁면 | C137: 장○남 | D137: 야생동물 피해예방시설 설치 지원사업 | E137: 민간자본사업보조 | F137: 2,094천원*1식*60% | G137: 2,094 | H137: 1,256 | I137: 838 | J137: 1,256 | K137: 1,256 | L137: 1,256
A138: 환경관리과 | B138: 예천읍 | C138: 박○순 | D138: 야생동물 피해예방시설 설치 지원사업 | E138: 민간자본사업보조 | F138: 4,200천원*1식*60% | G138: 4,200 | H138: 2,520 | I138: 1,680 | J138: 2,520 | K138: 2,520 | L138: 2,520
A139: 환경관리과 | B139: 풍양면 | C139: 안○녀 | D139: 야생동물 피해예방시설 설치 지원사업 | E139: 민간자본사업보조 | F139: 5,000천원*1식*60% | G139: 5,000 | H139: 3,000 | I139: 2,000 | J139: 3,000 | K139: 3,000 | L139: 3,000
A140: 환경관리과 | B140: 용궁면 | C140: 전○하 | D140: 야생동물 피해예방시설 설치 지원사업 | E140: 민간자본사업보조 | F140: 3,000천원*1식*60% | G140: 3,000 | H140: 1,800 | I140: 1,200 | J140: 1,800 | K140: 1,800 | L140: 1,800
A141: 예비자 | B141: 호명면 | C141: 이○교 | D141: 야생동물 피해예방시설 설치 지원사업 | E141: 민간자본사업보조 | F141: 3,600천원*1식*60%
A142: 예비자 | B142: 울산광 | C142: 박○종 | D142: 야생동물 피해예방시설 설치 지원사업 | E142: 민간자본사업보조 | F142: 4,950천원*1식*60%
A143: 예비자 | B143: 구미시 | C143: 구○호 | D143: 야생동물 피해예방시설 설치 지원사업 | E143: 민간자본사업보조 | F143: 7,500천원*1식*60%
A144: 예비자 | B144: 안동시 | C144: 황○술 | D144: 야생동물 피해예방시설 설치 지원사업 | E144: 민간자본사업보조 | F144: 5,250천원*1식*60%
A145: 예비자 | B145: 효자면 | C145: 김○섭 | D145: 야생동물 피해예방시설 설치 지원사업 | E145: 민간자본사업보조 | F145: 6,150천원*1식*60%
A146: 예비자 | B146: 풍양면 | C146: 홍○진 | D146: 야생동물 피해예방시설 설치 지원사업 | E146: 민간자본사업보조 | F146: 4,400천원*1식*60%
A147: 예비자 | B147: 개포면 | C147: 김○숙 | D147: 야생동물 피해예방시설 설치 지원사업 | E147: 민간자본사업보조 | F147: 520천원*1식*60%
A148: 예비자 | B148: 용궁면 | C148: 이○현 | D148: 야생동물 피해예방시설 설치 지원사업 | E148: 민간자본사업보조 | F148: 2,491천원*1식*60%
A149: 예비자 | B149: 용궁면 | C149: 박○후 | D149: 야생동물 피해예방시설 설치 지원사업 | E149: 민간자본사업보조 | F149: 2,889천원*1식*60%
A150: 예비자 | B150: 용궁면 | C150: 이○복 | D150: 야생동물 피해예방시설 설치 지원사업 | E150: 민간자본사업보조 | F150: 550천원*1식*60%
A151: 예비자 | B151: 용궁면 | C151: 안○만 | D151: 야생동물 피해예방시설 설치 지원사업 | E151: 민간자본사업보조 | F151: 3,000천원*1식*60%
A152: 예비자 | B152: 용궁면 | C152: 안○욱 | D152: 야생동물 피해예방시설 설치 지원사업 | E152: 민간자본사업보조 | F152: 3,000천원*1식*60%
A153: 예비자 | B153: 용궁면 | C153: 안○훈 | D153: 야생동물 피해예방시설 설치 지원사업 | E153: 민간자본사업보조 | F153: 3,000천원*1식*60%
A154: 예비자 | B154: 용궁면 | C154: 임○진 | D154: 야생동물 피해예방시설 설치 지원사업 | E154: 민간자본사업보조 | F154: 3,000천원*1식*60%
A155: 예비자 | B155: 용궁면 | C155: 안○식 | D155: 야생동물 피해예방시설 설치 지원사업 | E155: 민간자본사업보조 | F155: 3,000천원*1식*60%
A156: 예비자 | B156: 용궁면 | C156: 안○수 | D156: 야생동물 피해예방시설 설치 지원사업 | E156: 민간자본사업보조 | F156: 3,000천원*1식*60%
A157: 예비자 | B157: 용궁면 | C157: 안○식 | D157: 야생동물 피해예방시설 설치 지원사업 | E157: 민간자본사업보조 | F157: 3,000천원*1식*60%
A158: 예비자 | B158: 용궁면 | C158: 임○윤 | D158: 야생동물 피해예방시설 설치 지원사업 | E158: 민간자본사업보조 | F158: 3,000천원*1식*60%
A159: 예비자 | B159: 유천면 | C159: 윤○규 | D159: 야생동물 피해예방시설 설치 지원사업 | E159: 민간자본사업보조 | F159: 7,800천원*1식*60%
A160: 예비자 | B160: 보문면 | C160: 조○민 | D160: 야생동물 피해예방시설 설치 지원사업 | E160: 민간자본사업보조 | F160: 1,879천원*1식*60%
A161: 예비자 | B161: 보문면 | C161: 정○민 | D161: 야생동물 피해예방시설 설치 지원사업 | E161: 민간자본사업보조 | F161: 458천원*1식*60%
A162: 예비자 | B162: 보문면 | C162: 우○호 | D162: 야생동물 피해예방시설 설치 지원사업 | E162: 민간자본사업보조 | F162: 2,625천원*1식*60%
A163: 예비자 | B163: 보문면 | C163: 우○윤 | D163: 야생동물 피해예방시설 설치 지원사업 | E163: 민간자본사업보조 | F163: 7,455천원*1식*60%
A164: 예비자 | B164: 보문면 | C164: 송○희 | D164: 야생동물 피해예방시설 설치 지원사업 | E164: 민간자본사업보조 | F164: 504천원*1식*60%
A165: 예비자 | B165: 호명면 | C165: 이○하 | D165: 야생동물 피해예방시설 설치 지원사업 | E165: 민간자본사업보조 | F165: 3,660천원*1식*60%
A166: 예비자 | B166: 보문면 | C166: 김○기 | D166: 야생동물 피해예방시설 설치 지원사업 | E166: 민간자본사업보조 | F166: 5,400천원*1식*60%
A167: 예비자 | B167: 보문면 | C167: 권○철 | D167: 야생동물 피해예방시설 설치 지원사업 | E167: 민간자본사업보조 | F167: 412천원*1식*60%
A168: 예비자 | B168: 보문면 | C168: 이○용 | D168: 야생동물 피해예방시설 설치 지원사업 | E168: 민간자본사업보조 | F168: 5,025천원*1식*60%
A169: 예비자 | B169: 예천읍 | C169: 신○균 | D169: 야생동물 피해예방시설 설치 지원사업 | E169: 민간자본사업보조 | F169: 4,620천원*1식*60%
A170: 예비자 | B170: 보문면 | C170: 장○정 | D170: 야생동물 피해예방시설 설치 지원사업 | E170: 민간자본사업보조 | F170: 660천원*1식*60%
A171: 예비자 | B171: 감천면 | C171: 박○규 | D171: 야생동물 피해예방시설 설치 지원사업 | E171: 민간자본사업보조 | F171: 5,000천원*1식*60%
A172: 예비자 | B172: 보문면 | C172: 배○현 | D172: 야생동물 피해예방시설 설치 지원사업 | E172: 민간자본사업보조 | F172: 2,491천원*1식*60%
A173: 예비자 | B173: 감천면 | C173: 진○식 | D173: 야생동물 피해예방시설 설치 지원사업 | E173: 민간자본사업보조 | F173: 5,500천원*1식*60%
A174: 예비자 | B174: 감천면 | C174: 김○종 | D174: 야생동물 피해예방시설 설치 지원사업 | E174: 민간자본사업보조 | F174: 7,500천원*1식*60%
A175: 예비자 | B175: 용문면 | C175: 정○민 | D175: 야생동물 피해예방시설 설치 지원사업 | E175: 민간자본사업보조 | F175: 4,500천원*1식*60%
A176: 예비자 | B176: 감천면 | C176: 김○덕 | D176: 야생동물 피해예방시설 설치 지원사업 | E176: 민간자본사업보조 | F176: 3,750천원*1식*60%
A177: 예비자 | B177: 감천면 | C177: 강○우 | D177: 야생동물 피해예방시설 설치 지원사업 | E177: 민간자본사업보조 | F177: 228천원*1식*60%
A178: 예비자 | B178: 감천면 | C178: 조○섭 | D178: 야생동물 피해예방시설 설치 지원사업 | E178: 민간자본사업보조 | F178: 1,100천원*1식*60%
A179: 예비자 | B179: 감천면 | C179: 윤○수 | D179: 야생동물 피해예방시설 설치 지원사업 | E179: 민간자본사업보조 | F179: 3,750천원*1식*60%
A180: 예비자 | B180: 감천면 | C180: 윤○희 | D180: 야생동물 피해예방시설 설치 지원사업 | E180: 민간자본사업보조 | F180: 4,500천원*1식*60%
A181: 예비자 | B181: 예천읍 | C181: 이○희 | D181: 야생동물 피해예방시설 설치 지원사업 | E181: 민간자본사업보조 | F181: 3,900천원*1식*60%
A182: 예비자 | B182: 은풍면 | C182: 이○락 | D182: 야생동물 피해예방시설 설치 지원사업 | E182: 민간자본사업보조 | F182: 5,325천원*1식*60%
A183: 예비자 | B183: 은풍면 | C183: 전○용 | D183: 야생동물 피해예방시설 설치 지원사업 | E183: 민간자본사업보조 | F183: 1,935천원*1식*60%
A184: 예비자 | B184: 은풍면 | C184: 임○국 | D184: 야생동물 피해예방시설 설치 지원사업 | E184: 민간자본사업보조 | F184: 4,500천원*1식*60%
A185: 예비자 | B185: 은풍면 | C185: 김○성 | D185: 야생동물 피해예방시설 설치 지원사업 | E185: 민간자본사업보조 | F185: 4,830천원*1식*60%
A186: 예비자 | B186: 은풍면 | C186: 이○식 | D186: 야생동물 피해예방시설 설치 지원사업 | E186: 민간자본사업보조 | F186: 6,750천원*1식*60%
A187: 예비자 | B187: 은풍면 | C187: 윤○열 | D187: 야생동물 피해예방시설 설치 지원사업 | E187: 민간자본사업보조 | F187: 5,700천원*1식*60%
A188: 예비자 | B188: 효자면 | C188: 박○기 | D188: 야생동물 피해예방시설 설치 지원사업 | E188: 민간자본사업보조 | F188: 1,954천원*1식*60%
A189: 예비자 | B189: 예천읍 | C189: 강○호 | D189: 야생동물 피해예방시설 설치 지원사업 | E189: 민간자본사업보조 | F189: 2,400천원*1식*60%
A190: 예비자 | B190: 유천면 | C190: 양○섭 | D190: 야생동물 피해예방시설 설치 지원사업 | E190: 민간자본사업보조 | F190: 3,900천원*1식*60%
A191: 예비자 | B191: 보문면 | C191: 김○경 | D191: 야생동물 피해예방시설 설치 지원사업 | E191: 민간자본사업보조 | F191: 790천원*1식*60%
A192: 예비자 | B192: 은풍면 | C192: 구○윤 | D192: 야생동물 피해예방시설 설치 지원사업 | E192: 민간자본사업보조 | F192: 2,550천원*1식*60%
A193: 예비자 | B193: 풍양면 | C193: 박○하 | D193: 야생동물 피해예방시설 설치 지원사업 | E193: 민간자본사업보조 | F193: 3,685천원*1식*60%
A194: 예비자 | B194: 지보면 | C194: 이○ | D194: 야생동물 피해예방시설 설치 지원사업 | E194: 민간자본사업보조 | F194: 2,491천원*1식*60%
A195: 예비자 | B195: 보문면 | C195: 정○혜 | D195: 야생동물 피해예방시설 설치 지원사업 | E195: 민간자본사업보조 | F195: 2,312천원*1식*60%
A196: 예비자 | B196: 보문면 | C196: 하○희 | D196: 야생동물 피해예방시설 설치 지원사업 | E196: 민간자본사업보조 | F196: 3,540천원*1식*60%
A197: 예비자 | B197: 보문면 | C197: 권○운 | D197: 야생동물 피해예방시설 설치 지원사업 | E197: 민간자본사업보조 | F197: 750천원*1식*60%
A198: 예비자 | B198: 보문면 | C198: 권○혁 | D198: 야생동물 피해예방시설 설치 지원사업 | E198: 민간자본사업보조 | F198: 486천원*1식*60%
A199: 예비자 | B199: 보문면 | C199: 김○면 | D199: 야생동물 피해예방시설 설치 지원사업 | E199: 민간자본사업보조 | F199: 2,810천원*1식*60%
A200: 예비자 | B200: 은풍면 | C200: 이○형 | D200: 야생동물 피해예방시설 설치 지원사업 | E200: 민간자본사업보조 | F200: 2,700천원*1식*60%
... 2706 more rows
